bitfinex-derivatives/quotes_BNBF0:USTF0_20250507
["timestamp","ask_amount","ask_price","bid_price","bid_amount"]
[1746623094006,0.30255205,608.15,607.06,0.32945672]
[1746623096506,0.28644097,608.14,607.06,0.32945672]
[1746623096707,0.30255205,608.13,607.06,0.32945672]
[1746623099306,0.30255205,608.23,607.06,0.32945672]
[1746623099503,0.28644333,608.12,607.06,0.32945672]
[1746623099810,0.30255205,608.23,607.06,0.32945672]
[1746623100605,0.28643154,608.22,607.06,0.32945672]
[1746623101110,0.30255205,608.21,607.06,0.32945672]
[1746623102413,0.2864339,608.2,607.06,0.32945672]
[1746623102807,0.30255205,608.19,607.06,0.32945672]
[1746623107015,0.2864339,608.2,607.06,0.32945672]
[1746623107217,0.30254609,608.18,607.06,0.32945672]
[1746623107414,0.30254609,608.19,607.06,0.32945672]
[1746623108612,0.28643626,608.18,607.06,0.32945672]
[1746623108816,0.58898235,608.18,607.06,0.32945672]
[1746623109017,0.30254609,608.17,607.06,0.32945672]
[1746623110313,0.30254609,608.17,607.06,0.32514627]
[1746623111521,0.28643626,608.18,607.06,0.32514627]
[1746623111819,0.30259508,608.17,607.06,0.32514627]
[1746623114322,0.30259508,608.23,607.06,0.32514627]
[1746623115322,0.28644922,608.22,607.06,0.32514627]
[1746623115523,0.30259508,608.21,607.06,0.32514627]
[1746623117421,0.32883919,608.2,607.06,0.32514627]
[1746623117924,0.30259508,608.19,607.06,0.32514627]
[1746623118423,0.63143968,608.19,607.06,0.32514627]
[1746623119823,0.3288446,608.19,607.06,0.32514627]
[1746623120021,0.30259402,608.18,607.06,0.32514627]
[1746623120424,0.58905739,608.18,607.06,0.32514627]
[1746623123027,0.58905739,608.18,607.06,0.95814627]
[1746623123226,0.30259402,608.18,607.06,0.95814627]
[1746623123526,0.28645394,608.17,607.06,0.95814627]
[1746623126127,0.3288446,608.19,607.06,0.95814627]
[1746623126426,0.28645276,608.16,607.06,0.95814627]
[1746623129129,0.3288446,608.19,607.06,0.95814627]
[1746623129430,0.28645276,608.15,607.06,0.95814627]
[1746623132133,0.3288446,608.19,607.06,0.95814627]
[1746623132533,0.28644804,608.14,607.06,0.95814627]
[1746623134435,0.28644804,608.14,607.06,1.60914627]
[1746623135132,0.3288446,608.19,607.06,1.60914627]
[1746623135635,0.28644804,608.13,607.06,1.60914627]
[1746623137736,0.28644804,608.13,607.06,2.20214627]
[1746623138031,0.30260515,608.12,607.06,2.20214627]
[1746623138436,0.58906498,608.12,607.06,2.20214627]
[1746623138838,0.30260515,608.11,607.06,2.20214627]
[1746623139032,0.28645983,608.12,607.06,2.20214627]
[1746623139237,0.3026201,608.11,607.06,2.20214627]
[1746623139438,1.23944565,608.1,607.06,2.20214627]
[1746623139635,1.23944565,608.09,607.06,2.80014627]
[1746623139938,1.54206575,608.08,607.06,2.80014627]
[1746623140133,1.23944565,608.07,607.06,2.80014627]
[1746623140338,1.23944565,608.06,607.06,2.80014627]
[1746623140638,1.54206575,608.05,607.06,2.80014627]
[1746623140838,0.28645983,608.12,607.06,2.80014627]
[1746623141039,0.30261958,608.11,607.06,2.80014627]
[1746623141541,0.28646809,608.1,607.06,2.80014627]
[1746623141734,1.23935359,608.09,607.06,2.80014627]
[1746623141939,0.30261958,608.08,607.06,2.80014627]
[1746623142736,0.28646809,608.1,607.06,2.80014627]
[1746623142737,0.30261958,608.09,607.06,2.80014627]
[1746623143641,1.23943969,608.08,607.06,2.80014627]
[1746623144041,0.30261958,608.07,607.06,2.80014627]
[1746623144239,1.54205927,608.07,607.06,2.80014627]
[1746623144436,0.30261958,608.07,607.06,2.80014627]
[1746623144637,1.23938336,608.06,607.06,2.80014627]
[1746623145042,1.54200294,608.05,607.06,2.80014627]
[1746623145240,0.30261958,608.05,607.06,2.80014627]
[1746623145436,1.54199184,608.04,607.06,2.80014627]
[1746623145637,1.54199184,608.03,607.06,2.80014627]
[1746623145839,1.23937226,608.02,607.06,2.80014627]
[1746623146039,1.23937226,608.01,607.06,2.80014627]
[1746623146242,1.23937226,608.0,607.06,2.80014627]
[1746623146539,1.23937226,607.99,607.06,2.80014627]
[1746623146739,1.54199184,607.98,607.06,2.80014627]
[1746623147043,1.54199184,607.97,607.06,2.80014627]
[1746623147244,1.23937226,607.96,607.06,2.80014627]
[1746623147443,1.23937226,607.95,607.06,2.80014627]
[1746623147644,1.23937226,607.94,607.06,2.80014627]
[1746623147843,1.5419968,607.93,607.06,2.80014627]
[1746623148044,1.23937226,607.92,607.06,2.80014627]
[1746623148245,1.23937226,607.91,607.06,2.80014627]
[1746623148445,1.23937226,607.9,607.06,2.80014627]
[1746623148644,1.23937226,607.89,607.06,2.80014627]
[1746623148840,1.23937226,607.88,607.06,2.80014627]
[1746623149040,1.23937226,607.87,607.06,2.80014627]
[1746623149243,1.23918437,607.86,607.06,2.80014627]
[1746623149444,0.28648577,607.96,607.06,2.80014627]
[1746623149841,0.3026191,607.95,607.06,2.80014627]
[1746623150545,0.28648695,607.94,607.06,2.80014627]
[1746623150744,0.3026191,607.93,607.06,2.80014627]
[1746623153642,0.3026191,608.18,607.06,2.80014627]
[1746623153844,0.32885541,608.17,607.06,2.80014627]
[1746623154043,0.63147451,608.17,607.06,2.80014627]
[1746623154349,0.3026191,608.16,607.06,2.80014627]
[1746623154550,0.58908129,608.16,607.06,2.80014627]
[1746623154751,0.3026191,608.15,607.06,2.80014627]
[1746623155050,0.3026191,608.14,607.06,2.80014627]
[1746623155450,0.3026191,608.13,607.06,2.80014627]
[1746623155751,0.3026191,608.12,607.06,2.80014627]
[1746623156050,0.3026191,608.11,607.06,2.80014627]
[1746623156352,0.3026191,608.1,607.06,2.80014627]
[1746623156751,0.3026191,608.15,607.06,2.80014627]
[1746623157351,0.61532301,608.16,607.06,2.80014627]
[1746623157654,0.3026265,608.15,607.06,2.80014627]
[1746623157952,0.61532301,608.16,607.06,2.80014627]
[1746623157953,0.3026265,608.14,607.06,2.80014627]
[1746623158352,0.3026265,608.13,607.06,2.80014627]
[1746623158649,0.3026265,608.12,607.06,2.80014627]
[1746623158951,0.3026265,608.15,607.06,2.80014627]
[1746623162455,0.28646337,608.14,607.06,2.80014627]
[1746623162655,0.3026265,608.13,607.06,2.80014627]
[1746623165356,0.3026265,608.15,607.06,2.80014627]
[1746623165557,0.28646573,608.12,607.06,2.80014627]
[1746623165961,0.3026265,608.11,607.06,2.80014627]
[1746623168358,0.3026265,608.15,607.06,2.80014627]
[1746623168555,0.28646809,608.1,607.06,2.80014627]
[1746623168766,0.3026265,608.09,607.06,2.80014627]
[1746623169467,0.28646809,608.1,607.06,2.80014627]
[1746623169766,0.30261517,608.09,607.06,2.80014627]
[1746623171476,0.28647045,608.08,607.06,2.80014627]
[1746623172065,0.30261517,608.07,607.06,2.80014627]
[1746623174574,0.28646455,608.06,607.06,2.80014627]
[1746623175074,0.30261517,608.05,607.06,2.80014627]
[1746623177375,0.30261517,608.14,607.06,2.80014627]
[1746623177573,0.28648813,608.04,607.06,2.80014627]
[1746623177971,0.63148681,608.14,607.06,2.80014627]
[1746623178276,0.63149221,608.13,607.06,2.80014627]
[1746623178475,0.32888245,608.12,607.06,2.80014627]
[1746623178676,0.61536351,608.12,607.06,2.80014627]
[1746623178876,0.30264617,608.11,607.06,2.80014627]
[1746623179179,0.32889327,608.1,607.06,2.80014627]
[1746623179682,0.30264617,608.09,607.06,2.80014627]
[1746623180480,0.2864728,608.08,607.06,2.80014627]
[1746623180781,0.30264617,608.07,607.06,2.80014627]
[1746623183483,0.28647516,608.06,607.06,2.80014627]
[1746623183684,0.30264617,608.05,607.06,2.80014627]
[1746623186687,0.28647752,608.04,607.06,2.80014627]
[1746623186885,0.58909561,608.04,607.06,2.80014627]
[1746623187186,0.30261809,608.03,607.06,2.80014627]
[1746623189489,0.28647988,608.02,607.06,2.80014627]
[1746623189786,0.30261809,608.01,607.06,2.80014627]
[1746623192292,0.32889327,608.1,607.06,2.80014627]
[1746623192590,0.58910227,608.0,607.06,2.80014627]
[1746623192791,0.30262003,608.0,607.06,2.80014627]
[1746623193090,0.30262003,607.99,607.06,2.80014627]
[1746623194090,0.28649167,607.98,607.06,2.80014627]
[1746623194791,0.30262003,607.97,607.06,2.80014627]
[1746623195392,0.30262003,608.09,607.06,2.80014627]
[1746623195693,0.32890409,608.08,607.06,2.80014627]
[1746623195892,0.28649167,607.96,607.06,2.80014627]
[1746623196092,0.30262003,608.07,607.06,2.80014627]
[1746623196292,0.3289149,608.06,607.06,2.80014627]
[1746623196589,0.30262003,608.05,607.06,2.80014627]
[1746623196797,0.58911524,608.05,607.06,2.80014627]
[1746623197195,0.30262003,608.04,607.06,2.80014627]
[1746623198598,0.28649639,608.03,607.06,2.80014627]
[1746623199096,0.30262003,608.02,607.06,2.80014627]
[1746623201396,0.30262003,608.05,607.06,2.80014627]
[1746623201701,0.28649639,608.01,607.06,2.80014627]
[1746623202299,0.30262003,608.0,607.06,2.80014627]
[1746623204499,0.28650228,607.99,607.06,2.80014627]
[1746623205093,0.30262003,607.98,607.06,2.80014627]
[1746623207405,0.28650464,607.97,607.06,2.80014627]
[1746623208005,0.30262003,607.96,607.06,2.80014627]
[1746623211008,0.30262003,607.96,607.06,2.475]
[1746623213108,0.63158904,607.96,607.06,2.475]
[1746623213308,0.63159445,607.95,607.06,2.475]
[1746623213603,0.30262003,607.94,607.06,2.475]
[1746623216512,0.28653531,607.93,607.06,2.475]
[1746623216811,0.30262003,607.92,607.06,2.475]
[1746623218912,0.28653531,607.93,607.06,2.475]
[1746623219111,0.30270861,607.92,607.06,2.475]
[1746623219413,0.58924392,607.92,607.06,2.475]
[1746623220111,0.28653531,607.92,607.06,2.475]
[1746623220510,0.30270861,607.91,607.06,2.475]
[1746623221613,1.23840355,607.9,607.06,2.475]
[1746623221813,1.23840355,607.89,607.06,2.475]
[1746623222013,1.54111216,607.88,607.06,2.475]
[1746623222313,1.87012987,607.87,607.06,2.475]
[1746623222515,1.87013529,607.86,607.06,2.475]
[1746623222712,1.54111216,607.85,607.06,2.475]
[1746623222910,1.87014611,607.84,607.06,2.475]
[1746623223113,1.23840355,607.83,607.06,2.475]
[1746623223314,1.23840355,607.82,607.06,2.475]
[1746623223514,1.23840355,607.81,607.06,2.475]
[1746623223813,1.53996508,607.8,607.06,2.475]
[1746623224015,1.23725647,607.79,607.06,2.475]
[1746623224213,1.23725647,607.78,607.06,2.475]
[1746623224412,1.53996508,607.77,607.06,2.475]
[1746623224709,1.53996508,607.76,607.06,2.475]
[1746623224916,1.23725647,607.75,607.06,2.475]
[1746623225115,1.53996508,607.74,607.06,2.475]
[1746623225314,1.23725647,607.73,607.06,2.475]
[1746623225515,1.23689127,607.72,607.06,2.475]
[1746623225718,1.23689127,607.71,607.06,2.475]
[1746623225913,1.23689127,607.7,607.06,2.475]
[1746623226209,1.23689127,607.69,607.06,2.475]
[1746623226412,1.23689127,607.68,607.06,2.475]
[1746623226613,1.23689127,607.67,607.06,2.475]
[1746623226814,1.23689127,607.66,607.06,2.475]
[1746623227015,1.23689127,607.65,607.06,2.475]
[1746623227214,0.30273655,607.66,607.06,2.475]
[1746623227215,1.53962782,607.64,607.06,2.475]
[1746623227416,1.23689127,607.63,607.06,2.475]
[1746623227612,1.53962782,607.62,607.06,2.475]
[1746623227817,1.23689127,607.61,607.06,2.475]
[1746623228017,1.23689127,607.6,607.06,2.475]
[1746623228217,1.53962782,607.59,605.3,1.04121541]
[1746623228418,1.23689127,607.58,605.41,0.33035463]
[1746623228617,1.23689127,607.57,605.41,0.33035463]
[1746623228919,1.23689127,607.56,605.41,0.33035463]
[1746623229218,1.23689127,607.55,605.41,0.33035463]
[1746623229417,1.23689127,607.54,605.41,0.33035463]
[1746623229617,1.23689127,607.53,605.41,0.33035463]
[1746623229919,0.28659312,607.59,605.41,0.33035463]
[1746623230213,1.23637654,607.58,605.41,0.33035463]
[1746623230419,1.23637654,607.57,605.42,0.28677379]
[1746623230618,1.23637654,607.56,605.52,0.33029462]
[1746623230818,1.23637654,607.55,605.52,0.33029462]
[1746623231016,1.23637654,607.54,605.52,0.33029462]
[1746623231215,1.23637654,607.53,605.52,0.87929462]
[1746623231521,1.23637654,607.52,605.52,0.87929462]
[1746623231718,1.23637654,607.51,605.52,0.87929462]
[1746623231919,1.23637654,607.5,605.52,0.87929462]
[1746623232119,1.23637654,607.49,605.52,1.40329462]
[1746623232315,1.23637654,607.48,605.52,1.40329462]
[1746623232517,1.23637654,607.47,605.52,1.40329462]
[1746623232715,1.23624997,607.46,605.52,1.40329462]
[1746623232919,1.23624997,607.45,605.52,1.40329462]
[1746623233119,1.23624997,607.44,605.52,1.40329462]
[1746623233319,1.23624997,607.43,605.52,1.40329462]
[1746623233520,1.23624997,607.42,605.52,1.40329462]
[1746623233717,1.23613231,607.41,605.52,1.40329462]
[1746623233921,1.23613231,607.4,605.52,1.40329462]
[1746623234121,1.23613231,607.39,605.52,1.40329462]
[1746623234423,1.23613231,607.38,605.52,1.40329462]
[1746623234621,1.23613231,607.37,605.52,1.40329462]
[1746623234821,1.23613231,607.36,605.52,1.40329462]
[1746623235021,1.23613231,607.35,605.52,1.40329462]
[1746623235221,1.23613231,607.34,605.52,1.40329462]
[1746623235422,1.23613231,607.33,605.52,1.40329462]
[1746623235622,1.23613231,607.32,605.52,1.40329462]
[1746623235819,1.23613231,607.31,605.52,1.40329462]
[1746623236122,1.23613231,607.3,605.52,1.40329462]
[1746623236322,1.23613231,607.29,605.52,1.40329462]
[1746623236524,1.23613231,607.28,605.52,1.40329462]
[1746623236725,1.23613231,607.27,605.52,1.40329462]
[1746623236923,1.23613231,607.26,605.52,1.40329462]
[1746623237224,1.23619447,607.25,605.52,1.40329462]
[1746623237422,1.23619447,607.24,605.52,1.40329462]
[1746623237626,1.23619447,607.23,605.52,1.40329462]
[1746623237921,1.23619447,607.22,605.52,1.40329462]
[1746623238125,1.23619447,607.21,605.52,1.40329462]
[1746623238324,1.23619447,607.2,605.52,1.40329462]
[1746623238520,0.28681279,607.51,605.52,1.40329462]
[1746623238521,1.23619447,607.19,605.52,1.40329462]
[1746623238826,1.23619447,607.18,605.52,1.40329462]
[1746623239019,1.23621519,607.17,605.52,1.40329462]
[1746623239222,1.23621519,607.16,605.52,1.40329462]
[1746623239420,1.23621519,607.15,605.52,1.40329462]
[1746623239625,1.23621519,607.14,605.52,1.40329462]
[1746623239923,1.23621519,607.13,605.52,1.40329462]
[1746623240225,1.23621519,607.12,605.52,1.40329462]
[1746623240424,1.23621519,607.11,605.52,1.40329462]
[1746623240624,0.28682816,607.51,605.52,1.40329462]
[1746623240625,1.23621519,607.1,605.52,1.40329462]
[1746623240822,1.23621519,607.09,605.52,1.40329462]
[1746623241022,1.23621519,607.08,605.52,1.40329462]
[1746623241318,1.23621519,607.07,605.52,1.40329462]
[1746623241521,1.23592146,607.06,605.52,1.40329462]
[1746623241721,1.23592146,607.05,605.52,1.40329462]
[1746623242027,1.23592146,607.04,605.52,1.40329462]
[1746623242324,1.23592146,607.03,605.52,1.40329462]
[1746623242525,1.23592146,607.02,605.52,1.40329462]
[1746623242824,1.23592146,607.01,605.52,1.40329462]
[1746623243026,1.23592146,607.0,605.52,1.40329462]
[1746623243225,1.23592146,606.99,605.52,1.40329462]
[1746623243423,1.23592146,606.98,605.52,1.40329462]
[1746623243623,0.32903395,607.84,605.52,1.40329462]
[1746623243819,1.23632996,607.83,605.52,1.40329462]
[1746623244019,1.53906328,607.82,605.52,1.40329462]
[1746623244221,1.53906328,607.81,605.52,1.40329462]
[1746623244420,1.53912713,607.8,605.52,1.40329462]
[1746623244620,1.53912713,607.79,605.52,1.40329462]
[1746623244826,1.53912713,607.78,605.52,1.40329462]
[1746623245024,1.53912713,607.77,605.52,1.40329462]
[1746623245225,1.53912713,607.76,605.52,1.40329462]
[1746623245424,1.53912713,607.75,605.52,1.40329462]
[1746623245618,1.53912713,607.74,605.52,1.40329462]
[1746623245821,0.30273332,607.73,605.52,1.40329462]
[1746623246126,0.30273332,607.79,605.52,1.40329462]
[1746623246426,0.30273332,607.78,605.52,1.40329462]
[1746623246628,0.28673244,607.72,605.52,1.40329462]
[1746623246826,0.30273332,607.71,605.52,1.40329462]
[1746623247827,0.28673244,607.72,605.52,1.40329462]
[1746623248829,0.30271813,607.71,605.52,1.40329462]
[1746623249426,0.28675607,607.7,605.52,1.40329462]
[1746623249929,0.30273939,607.69,605.52,1.40329462]
[1746623250633,0.28675607,607.7,605.52,1.40329462]
[1746623250934,0.30273525,607.69,605.52,1.40329462]
[1746623251236,0.30273525,607.69,605.55,1.04121541]
[1746623252429,0.30273525,607.83,605.55,1.04121541]
[1746623252636,0.28674071,607.68,605.55,1.04121541]
[1746623252930,0.30273525,607.83,605.55,1.04121541]
[1746623253135,0.30273525,607.67,605.55,1.04121541]
[1746623253335,0.30273525,607.82,605.55,1.04121541]
[1746623253529,0.30273525,607.82,605.53,0.28674071]
[1746623253530,0.30273525,607.82,605.54,1.04121541]
[1746623253834,0.30273525,607.83,605.54,1.04121541]
[1746623254239,0.2867419,607.81,605.65,0.33022372]
[1746623254738,0.30273525,607.8,605.65,0.92722372]
[1746623257139,0.30273525,607.8,605.65,1.45922372]
[1746623258535,0.28673244,607.79,605.65,1.45922372]
[1746623258739,0.30273525,607.78,605.65,1.45922372]
[1746623259034,0.30273525,607.78,605.65,1.92322372]
[1746623261641,0.28673481,607.77,605.65,1.92322372]
[1746623261940,0.30273525,607.76,605.65,1.92322372]
[1746623262742,0.30273525,607.76,605.69,1.04121541]
[1746623262934,0.30273525,607.76,605.79,0.33014741]
[1746623264443,0.28673481,607.75,605.79,0.33014741]
[1746623264637,0.30273525,607.74,605.79,0.33014741]
[1746623265342,0.28673481,607.75,605.79,0.33014741]
[1746623265642,0.30275226,607.74,605.79,0.33014741]
[1746623267443,0.30275226,607.83,605.79,0.33014741]
[1746623267644,0.28672536,607.73,605.79,0.33014741]
[1746623268044,0.30275226,607.83,605.79,0.33014741]
[1746623268347,0.30275226,607.72,605.79,0.33014741]
[1746623268645,0.30275226,607.82,605.79,0.33014741]
[1746623268844,0.286723,607.82,605.79,0.33014741]
[1746623269239,0.30275226,607.81,605.79,0.33014741]
[1746623270445,0.28672536,607.8,605.79,0.33014741]
[1746623271040,0.30275226,607.79,605.79,0.33014741]
[1746623271745,0.30275226,607.79,605.79,0.82014741]
[1746623276543,0.28677143,607.78,605.79,0.82014741]
[1746623276746,0.30275226,607.77,605.79,0.82014741]
[1746623277146,1.01379835,607.76,605.79,0.82014741]
[1746623277442,1.01379835,607.75,605.79,0.82014741]
[1746623277646,1.31655061,607.75,605.79,0.82014741]
[1746623278049,0.30275226,607.74,605.79,0.82014741]
[1746623278248,0.32909351,607.73,605.79,0.82014741]
[1746623278441,0.30275226,607.72,605.79,0.82014741]
[1746623278751,1.01379835,607.71,605.79,0.82014741]
[1746623279051,0.30275226,607.7,605.79,0.82014741]
[1746623279244,0.32911517,607.69,605.79,0.82014741]
[1746623279447,1.34291352,607.69,605.79,0.82014741]
[1746623279744,0.28678325,607.68,605.79,0.82014741]
[1746623280043,1.34292435,607.67,605.79,0.82014741]
[1746623280247,1.64568203,607.66,605.79,0.82014741]
[1746623280548,0.30275226,607.65,605.79,0.82014741]
[1746623280949,1.01379835,607.64,605.79,0.82014741]
[1746623281245,0.30275226,607.63,605.79,0.82014741]
[1746623281849,1.01379835,607.62,605.79,0.82014741]
[1746623282150,1.34295143,607.62,605.79,0.82014741]
[1746623282345,0.63191076,607.61,605.79,0.82014741]
[1746623282549,1.64570911,607.61,605.79,0.82014741]
[1746623282746,1.31655061,607.6,605.79,0.82014741]
[1746623283049,1.31655061,607.59,605.79,0.82014741]
[1746623283252,0.32917475,607.58,605.79,0.82014741]
[1746623283449,1.01379835,607.57,605.79,1.60614741]
[1746623283645,0.63193785,607.56,605.79,1.60614741]
[1746623283848,1.01379835,607.55,605.79,2.06114741]
[1746623284050,1.31655061,607.55,605.79,2.06114741]
[1746623284252,1.31655061,607.54,605.79,2.06114741]
[1746623284651,0.30275226,607.53,605.79,2.06114741]
[1746623284850,1.01379835,607.52,605.79,2.06114741]
[1746623285044,1.31655061,607.52,605.79,2.06114741]
[1746623285248,1.01379835,607.51,605.79,2.06114741]
[1746623285446,1.31655061,607.51,605.79,2.06114741]
[1746623285648,1.31655061,607.5,605.79,2.06114741]
[1746623285951,0.30275226,607.49,605.79,2.06114741]
[1746623286153,1.31655061,607.49,605.79,2.06114741]
[1746623286352,1.01379835,607.48,605.79,2.06114741]
[1746623286552,1.31655061,607.48,605.79,2.06114741]
[1746623286749,0.30275226,607.47,605.79,2.06114741]
[1746623287052,1.01379835,607.46,605.79,2.06114741]
[1746623287353,1.01379835,607.45,605.79,2.06114741]
[1746623287653,1.31655061,607.45,605.79,2.06114741]
[1746623287952,0.30275226,607.44,605.79,2.06114741]
[1746623288252,1.01379835,607.43,605.79,2.06114741]
[1746623288653,1.31655061,607.42,605.79,2.06114741]
[1746623288955,0.30275226,607.41,605.79,2.06114741]
[1746623289153,1.01379835,607.4,605.79,2.06114741]
[1746623289656,0.30275226,607.39,605.79,2.06114741]
[1746623289857,1.01379835,607.38,605.79,2.06114741]
[1746623290152,0.30275226,607.37,605.79,2.06114741]
[1746623290356,1.01379835,607.36,605.79,2.06114741]
[1746623290751,1.31655061,607.35,605.79,2.06114741]
[1746623291252,1.31655061,607.34,605.79,2.06114741]
[1746623291452,0.30275226,607.33,605.79,2.06114741]
[1746623291851,1.01379835,607.32,605.79,2.06114741]
[1746623292459,1.01379835,607.31,605.79,2.06114741]
[1746623292757,1.01379835,607.3,605.79,2.06114741]
[1746623293359,1.01379835,607.29,605.79,2.06114741]
[1746623293960,1.01379835,607.28,605.79,2.06114741]
[1746623294454,1.01379835,607.27,605.79,2.06114741]
[1746623294960,1.01379835,607.26,605.79,2.06114741]
[1746623295457,1.01379835,607.25,605.79,2.06114741]
[1746623296160,1.01379835,607.24,605.79,2.06114741]
[1746623296560,1.01379835,607.23,605.79,2.06114741]
[1746623297462,1.01379835,607.22,605.79,2.06114741]
[1746623297759,1.01379835,607.21,605.79,2.06114741]
[1746623298257,1.01379835,607.2,605.79,2.06114741]
[1746623298461,1.01379835,607.19,605.79,2.06114741]
[1746623298859,1.01379835,607.18,605.79,2.06114741]
[1746623299462,1.01379835,607.17,605.79,2.06114741]
[1746623299761,1.01379835,607.16,605.79,2.06114741]
[1746623300262,1.01379835,607.15,605.79,2.06114741]
[1746623300864,1.01379835,607.14,605.79,2.06114741]
[1746623301359,1.01379835,607.13,605.79,2.06114741]
[1746623302065,1.01379835,607.12,605.79,2.06114741]
[1746623302360,1.01379835,607.12,605.79,2.57914741]
[1746623302664,1.01379835,607.11,605.79,2.57914741]
[1746623303459,1.01379835,607.1,605.79,2.57914741]
[1746623304068,1.01379835,607.09,605.79,2.57914741]
[1746623304366,1.01379835,607.08,605.79,2.57914741]
[1746623304762,1.01379835,607.07,605.79,2.57914741]
[1746623305167,1.01379835,607.06,605.79,2.57914741]
[1746623305567,1.01379835,607.05,605.79,2.57914741]
[1746623306068,1.01379835,607.04,605.79,2.57914741]
[1746623307069,1.01379835,607.03,605.79,2.57914741]
[1746623307470,1.01379835,607.02,605.79,2.57914741]
[1746623307867,1.01379835,607.01,605.79,2.57914741]
[1746623308370,1.01379835,607.0,605.79,2.57914741]
[1746623309171,1.01379835,606.99,605.79,2.57914741]
[1746623309566,1.01379835,606.98,605.79,2.57914741]
[1746623310067,1.01379835,606.97,605.79,2.57914741]
[1746623310468,1.01379835,606.96,605.79,2.57914741]
[1746623310772,1.01379835,606.95,605.79,2.57914741]
[1746623311468,1.01379835,606.94,605.79,2.57914741]
[1746623311975,1.01379835,606.93,605.79,2.57914741]
[1746623312471,1.01379835,606.92,605.79,2.57914741]
[1746623312668,1.01379835,606.91,605.79,2.57914741]
[1746623313373,1.01379835,606.9,605.79,2.57914741]
[1746623313773,1.01379835,606.89,605.79,2.57914741]
[1746623314572,1.01379835,606.88,605.79,2.57914741]
[1746623314972,1.01379835,606.87,605.79,2.57914741]
[1746623315772,1.01379835,606.86,605.79,2.57914741]
[1746623316370,1.01379835,606.85,605.79,2.57914741]
[1746623316975,1.01379835,606.84,605.79,2.57914741]
[1746623317377,1.01379835,606.83,605.79,2.57914741]
[1746623317680,1.01379835,606.82,605.79,2.57914741]
[1746623318174,1.01379835,606.81,605.79,2.57914741]
[1746623318773,1.01379835,606.8,605.79,2.57914741]
[1746623319076,1.01379835,606.79,605.79,2.57914741]
[1746623319278,1.01379835,606.78,605.79,2.57914741]
[1746623319778,1.01379835,606.77,605.79,2.57914741]
[1746623320279,1.01379835,606.76,605.79,2.57914741]
[1746623320579,1.01379835,606.75,605.79,2.57914741]
[1746623321180,1.01379835,606.74,605.79,2.57914741]
[1746623321875,1.01379835,606.73,605.79,2.57914741]
[1746623322279,1.01379835,606.72,605.79,2.57914741]
[1746623322775,1.01379835,606.71,605.79,2.57914741]
[1746623323081,1.01379835,606.7,605.79,2.57914741]
[1746623323982,1.01379835,606.69,605.79,2.57914741]
[1746623324977,1.01379835,606.68,605.79,2.57914741]
[1746623325487,1.01379835,606.67,605.79,2.57914741]
[1746623326185,1.01379835,606.66,605.79,2.57914741]
[1746623326687,1.01379835,606.65,605.79,2.57914741]
[1746623327087,1.01379835,606.64,605.79,2.57914741]
[1746623327686,1.01379835,606.63,605.79,2.57914741]
[1746623328490,1.01379835,606.62,605.79,2.57914741]
[1746623328888,1.01379835,606.61,605.79,2.57914741]
[1746623330289,1.01379835,606.6,605.79,2.57914741]
[1746623330889,1.01379835,606.59,605.79,2.57914741]
[1746623331485,1.01379835,606.58,605.79,2.57914741]
[1746623332192,0.28693813,607.17,605.79,2.57914741]
[1746623332193,1.01379835,606.57,605.79,2.57914741]
[1746623332586,1.01379835,606.56,605.79,2.57914741]
[1746623333393,1.01379835,606.55,605.79,2.57914741]
[1746623333592,1.01379835,606.54,605.79,2.57914741]
[1746623334491,1.01379835,606.53,605.79,2.57914741]
[1746623334791,1.01379835,606.52,605.79,2.57914741]
[1746623335194,1.01379835,606.51,605.79,2.57914741]
[1746623335694,1.01379835,606.5,605.79,2.57914741]
[1746623336394,1.01379835,606.49,605.79,2.57914741]
[1746623336894,1.01379835,606.48,605.79,2.57914741]
[1746623337094,0.32918559,607.56,605.79,2.57914741]
[1746623337395,0.3028977,607.55,605.79,2.57914741]
[1746623337596,0.32919643,607.54,605.79,2.57914741]
[1746623337892,0.3028977,607.53,605.79,2.57914741]
[1746623338195,1.01625061,607.52,605.79,2.57914741]
[1746623338795,0.3028977,607.53,605.79,2.57914741]
[1746623338796,1.31914831,607.51,605.79,2.57914741]
[1746623339095,1.01625061,607.5,605.79,2.57914741]
[1746623339288,1.01625061,607.49,605.79,2.57914741]
[1746623339596,1.3030835,607.49,605.79,2.57914741]
[1746623339793,1.31914831,607.48,605.79,2.57914741]
[1746623339989,0.3028977,607.47,605.79,2.57914741]
[1746623340495,1.01625061,607.46,605.79,2.57914741]
[1746623340895,1.01625061,607.45,605.79,2.57914741]
[1746623341095,1.31914831,607.45,605.79,2.57914741]
[1746623341296,0.3028977,607.44,605.79,2.57914741]
[1746623341598,1.01625061,607.43,605.79,2.57914741]
[1746623342099,1.01625061,607.42,605.79,2.57914741]
[1746623342397,0.3028977,607.41,605.79,2.57914741]
[1746623342599,1.01625061,607.4,605.79,2.57914741]
[1746623342994,0.3028977,607.39,605.79,2.57914741]
[1746623343300,1.01625061,607.38,605.79,2.57914741]
[1746623343802,1.31914831,607.37,605.79,2.57914741]
[1746623344199,0.3028977,607.36,605.79,2.57914741]
[1746623344602,1.01625061,607.35,605.79,2.57914741]